fUSD/lending_fUSD_20250226
["ID","MTS","AMOUNT","RATE_DAILY","PERIOD"]
[354560099,1740575434596,-500.0,0.00039726,14]
[354560101,1740575434608,-1724.37,0.00039726,14]
[354560103,1740575434618,-754.51,0.00039726,14]
[354560105,1740575434627,-1480.7,0.00039726,14]
[354560107,1740575434636,-818.41,0.00039726,14]
[354560109,1740575434646,-2469.31,0.00039726,14]
[354560111,1740575434655,-500.0,0.00039726,14]
[354560113,1740575434664,-793.87,0.00039726,14]
[354560114,1740575434673,-2851.43,0.00039726,14]
[354560115,1740575434683,-666.5,0.00039726,14]
[354560126,1740575434901,-661.76,0.00039726,14]
[354560128,1740575434913,-500.0,0.00039726,14]
[354560130,1740575434923,-674.56,0.00039726,14]
[354560132,1740575434933,-161.52059334,0.00039726,14]
[354560134,1740575434946,-500.0,0.00039726,14]
[354560136,1740575434956,-819.63,0.00039726,14]
[354560138,1740575434965,-954.92,0.00039726,14]
[354560140,1740575434975,-500.0,0.00039726,14]
[354560142,1740575434984,-2642.62,0.00039726,14]
[354560144,1740575434993,-500.0,0.00039726,14]
[354560146,1740575435002,-1530.02,0.00039726,14]
[354560148,1740575435012,-3744.89,0.00039726,14]
[354560150,1740575435022,-1429.61,0.00039726,14]
[354560152,1740575435031,-500.0,0.00039726,14]
[354560153,1740575435041,-825.28,0.00039726,14]
[354560156,1740575435050,-500.0,0.00039726,14]
[354560157,1740575435060,-500.0,0.00039726,14]
[354560160,1740575435070,-500.0,0.00039726,14]
[354560162,1740575435084,-863.05,0.00039726,14]
[354560164,1740575435095,-686.95,0.00039726,14]
[354560166,1740575435107,-1159.4,0.00039726,14]
[354560168,1740575435117,-500.0,0.00039726,14]
[354560170,1740575435126,-1570.55,0.00039726,14]
[354560172,1740575435136,-551.74,0.00039726,14]
[354560174,1740575435146,-500.0,0.00039726,14]
[354560176,1740575435155,-1570.24,0.00039726,14]
[354560178,1740575435164,-500.0,0.00039726,14]
[354560179,1740575435174,-500.0,0.00039726,14]
[354560182,1740575435184,-500.0,0.00039726,14]
[354560184,1740575435194,-500.0,0.00039726,14]
[354560186,1740575435204,-989.55,0.00039726,14]
[354560188,1740575435214,-500.0,0.00039726,14]
[354560189,1740575435224,-1767.47,0.00039726,14]
[354560191,1740575435233,-523.47,0.00039726,14]
[354560193,1740575435244,-719.22,0.00039726,14]
[354560195,1740575435253,-686.69,0.00039726,14]
[354560198,1740575435264,-1537.63,0.00039726,14]
[354560200,1740575435273,-500.0,0.00039726,14]
[354560202,1740575435283,-968.6,0.00039726,14]
[354560204,1740575435293,-1575.95,0.00039726,14]
[354560206,1740575435302,-543.4,0.00039726,14]
[354560208,1740575435311,-528.58,0.00039726,14]
[354560210,1740575435321,-2432.41,0.00039726,14]
[354560212,1740575435329,-541.83,0.00039726,14]
[354560214,1740575435339,-1795.79,0.00039726,14]
[354560216,1740575435348,-206.6283617,0.000399,8]
[354560218,1740575435360,-3729.24005746,0.0004,14]
[354560220,1740575435369,-500.0,0.0004,14]
[354560222,1740575435378,-1003.99,0.0004,14]
[354560224,1740575435387,-2223.55,0.0004,14]
[354560226,1740575435396,-500.0,0.0004,14]
[354560228,1740575435406,-500.0,0.0004,14]
[354560229,1740575435415,-1633.45,0.0004,14]
[354560232,1740575435424,-5865.29,0.0004,14]
[354560234,1740575435434,-506.08,0.0004,14]
[354560235,1740575435443,-500.0,0.0004,14]
[354560237,1740575435452,-1724.37,0.0004,14]
[354560239,1740575435461,-754.51,0.0004,14]
[354560241,1740575435471,-1480.7,0.0004,14]
[354560243,1740575435481,-818.41,0.0004,14]
[354560245,1740575435491,-2469.31,0.0004,14]
[354560247,1740575435500,-500.0,0.0004,14]
[354560249,1740575435509,-793.87,0.0004,14]
[354560251,1740575435518,-2851.43,0.0004,14]
[354560253,1740575435528,-666.5,0.0004,14]
[354560255,1740575435538,-661.76,0.0004,14]
[354560257,1740575435547,-500.0,0.0004,14]
[354560259,1740575435558,-674.56,0.0004,14]
[354560261,1740575435567,-500.0,0.0004,14]
[354560263,1740575435576,-819.63,0.0004,14]
[354560265,1740575435586,-954.92,0.0004,14]
[354560267,1740575435595,-500.0,0.0004,14]
[354560269,1740575435604,-2642.62,0.0004,14]
[354560271,1740575435616,-500.0,0.0004,14]
[354560273,1740575435625,-1530.02,0.0004,14]
[354560275,1740575435635,-3744.89,0.0004,14]
[354560278,1740575435645,-1429.61,0.0004,14]
[354560280,1740575435654,-500.0,0.0004,14]
[354560282,1740575435664,-825.28,0.0004,14]
[354560284,1740575435673,-500.0,0.0004,14]
[354560286,1740575435682,-500.0,0.0004,14]
[354560288,1740575435691,-500.0,0.0004,14]
[354560289,1740575435701,-863.05,0.0004,14]
[354560292,1740575435710,-686.95,0.0004,14]
[354560294,1740575435721,-1159.4,0.0004,14]
[354560295,1740575435730,-500.0,0.0004,14]
[354560297,1740575435740,-1570.55,0.0004,14]
[354560299,1740575435750,-551.74,0.0004,14]
[354560301,1740575435760,-500.0,0.0004,14]
[354560304,1740575435770,-1570.24,0.0004,14]
[354560306,1740575435780,-500.0,0.0004,14]
[354560307,1740575435790,-500.0,0.0004,14]
[354560310,1740575435802,-500.0,0.0004,14]
[354560312,1740575435811,-610.6715585,0.0004,14]
[354560314,1740575435821,-989.55,0.0004,14]
[354560316,1740575435830,-500.0,0.0004,14]
[354560318,1740575435840,-1767.47,0.0004,14]
[354560320,1740575435849,-523.47,0.0004,14]
[354560322,1740575435862,-719.22,0.0004,14]
[354560323,1740575435871,-686.69,0.0004,14]
[354560325,1740575435880,-1537.63,0.0004,14]
[354560327,1740575435890,-500.0,0.0004,14]
[354560329,1740575435899,-968.6,0.0004,14]
[354560332,1740575435910,-1575.95,0.0004,14]
[354560334,1740575435919,-543.4,0.0004,14]
[354560335,1740575435928,-528.58,0.0004,14]
[354560337,1740575435939,-2432.41,0.0004,14]
[354560339,1740575435951,-500.0,0.0004,120]
[354560342,1740575435961,-541.83,0.0004,14]
[354560344,1740575435971,-1795.79,0.0004,14]
[354560346,1740575435980,-4334.403,0.00040077,2]
[354560348,1740575435991,-500.0,0.00040095,7]
[354560350,1740575436000,-500.0,0.00040095,7]
[354560352,1740575436010,-349.74,0.00040095,7]
[354560354,1740575436021,-3377.317,0.00040095,57]
[354560356,1740575436031,-178.603,0.00040095,57]
[354560358,1740575436042,-500.0,0.000401,120]
[354560360,1740575436052,-305.94834974,0.00040173,2]
[354560362,1740575436061,-156.49,0.00040177,2]
[354560364,1740575436072,-504.1,0.000402,120]
[354560366,1740575436081,-150.0,0.00040211,2]
[354560368,1740575436091,-10188.9017,0.00040269,7]
[354560370,1740575436101,-5757.7742,0.00040269,2]
[354560372,1740575436115,-431.4717,0.00040269,2]
[354560374,1740575436125,-266.9752,0.00040269,2]
[354560376,1740575436136,-8644.9265,0.00040269,2]
[354560378,1740575436147,-3887.7554,0.00040269,2]
[354560380,1740575436158,-3708.47,0.00040272,14]
[354560382,1740575436169,-2401.25,0.00040272,14]
[354560384,1740575436180,-4835.15,0.00040272,14]
[354560386,1740575436190,-601.4,0.00040272,14]
[354560388,1740575436201,-1658.49,0.00040272,14]
[354560390,1740575436212,-500.0,0.00040272,14]
[354560392,1740575436222,-2217.0,0.00040272,14]
[354560394,1740575436233,-1666.86,0.00040272,14]
[354560396,1740575436244,-571.81361376,0.00040272,2]
[354560398,1740575436254,-400.12437721,0.00040272,2]
[354560400,1740575436265,-500.37874854,0.00040272,2]
[354560402,1740575436275,-5163.43,0.00040272,14]
[354560404,1740575436284,-960.89,0.00040272,14]
[354560406,1740575436294,-1951.44,0.00040272,14]
[354560408,1740575436304,-2666.33,0.00040272,14]
[354560410,1740575436313,-1487.83,0.00040273,14]
[354560412,1740575436322,-423.08,0.00040273,14]
[354560414,1740575436332,-2229.8,0.00040273,14]
[354560416,1740575436341,-1619.1,0.00040273,14]
[354560418,1740575436351,-1479.23,0.00040273,14]
[354560420,1740575436364,-2097.27,0.00040273,14]
[354560422,1740575436374,-900.12,0.00040273,14]
[354560424,1740575436384,-1076.44,0.00040273,14]
[354560426,1740575436394,-551.17,0.00040273,14]
[354560428,1740575436403,-2896.43,0.00040273,14]
[354560430,1740575436412,-888.15,0.00040273,14]
[354560432,1740575436423,-500.0,0.00040273,14]
[354560434,1740575436432,-1019.59,0.00040273,14]
[354560436,1740575436442,-851.36,0.00040273,14]
[354560439,1740575436452,-500.0,0.00040273,14]
[354560441,1740575436462,-1272.09,0.00040273,14]
[354560443,1740575436471,-990.23,0.00040273,14]
[354560445,1740575436481,-922.72,0.00040273,14]
[354560447,1740575436491,-1390.38,0.00040273,14]
[354560449,1740575436502,-906.93,0.00040273,14]
[354560451,1740575436511,-813.8,0.00040273,14]
[354560453,1740575436521,-979.23,0.00040273,14]
[354560455,1740575436530,-848.06,0.00040273,14]
[354560457,1740575436540,-1166.79,0.00040273,14]
[354560459,1740575436549,-2574.68,0.00040273,14]
[354560461,1740575436559,-935.21,0.00040273,14]
[354560462,1740575436568,-1947.41,0.00040273,14]
[354560465,1740575436577,-892.23,0.00040273,14]
[354560467,1740575436588,-1187.85,0.00040273,14]
[354560469,1740575436597,-2471.55,0.00040273,14]
[354560471,1740575436610,-631.4,0.00040273,14]
[354560473,1740575436619,-1163.86,0.00040273,14]
[354560475,1740575436628,-658.09,0.00040273,14]
[354560477,1740575436637,-829.5,0.00040273,14]
[354560479,1740575436647,-500.0,0.00040273,14]
[354560481,1740575436656,-2087.01,0.00040273,14]
[354560483,1740575436665,-1242.91,0.00040273,14]
[354560485,1740575436675,-2448.7,0.00040273,14]
[354560487,1740575436685,-751.34,0.00040273,14]
[354560489,1740575436694,-500.0,0.00040273,14]
[354560491,1740575436704,-366.88337901,0.00040273,14]
[354560493,1740575436713,-2720.53,0.00040273,14]
[354560495,1740575436723,-716.95,0.00040273,14]
[354560497,1740575436732,-897.6,0.00040273,14]
[354560499,1740575436742,-865.83,0.00040273,14]
[354560501,1740575436751,-555.27,0.00040273,14]
[354560503,1740575436760,-1380.31,0.00040273,14]
[354560505,1740575436769,-769.26,0.00040273,14]
[354560507,1740575436779,-5632.78,0.00040273,14]
[354560509,1740575436789,-500.0,0.00040273,14]
[354560511,1740575436798,-1003.99,0.00040273,14]
[354560513,1740575436807,-2223.55,0.00040273,14]
[354560515,1740575436817,-500.0,0.00040273,14]
[354560517,1740575436827,-500.0,0.00040273,14]
[354560519,1740575436836,-1633.45,0.00040273,14]
[354560521,1740575436845,-5865.29,0.00040273,14]
[354560523,1740575436855,-506.08,0.00040273,14]
[354560525,1740575436867,-500.0,0.00040273,14]
[354560527,1740575436877,-1724.37,0.00040273,14]
[354560529,1740575436887,-754.51,0.00040273,14]
[354560531,1740575436899,-1480.7,0.00040273,14]
[354560534,1740575436910,-818.41,0.00040273,14]
[354560536,1740575436919,-2469.31,0.00040273,14]
[354560538,1740575436929,-500.0,0.00040273,14]
[354560539,1740575436942,-793.87,0.00040273,14]
[354560542,1740575436953,-2851.43,0.00040273,14]
[354560544,1740575436964,-666.5,0.00040273,14]
[354560546,1740575436974,-661.76,0.00040273,14]
[354560548,1740575436983,-500.0,0.00040273,14]
[354560549,1740575436992,-674.56,0.00040273,14]
[354560552,1740575437002,-500.0,0.00040273,14]
[354560554,1740575437015,-819.63,0.00040273,14]
[354560555,1740575437024,-954.92,0.00040273,14]
[354560557,1740575437034,-366.72859879,0.00040273,14]
[354560560,1740575437044,-2642.62,0.00040273,14]
[354560562,1740575437054,-500.0,0.00040273,14]
[354560564,1740575437063,-1530.02,0.00040273,14]
[354560566,1740575437073,-3744.89,0.00040273,14]
[354560568,1740575437082,-1429.61,0.00040273,14]
[354560570,1740575437092,-500.0,0.00040273,14]
[354560571,1740575437101,-825.28,0.00040273,14]
[354560573,1740575437112,-500.0,0.00040273,14]
[354560576,1740575437122,-500.0,0.00040273,14]
[354560578,1740575437131,-500.0,0.00040273,14]
[354560580,1740575437140,-863.05,0.00040273,14]
[354560582,1740575437150,-686.95,0.00040273,14]
[354560583,1740575437159,-1159.4,0.00040273,14]
[354560585,1740575437169,-500.0,0.00040273,14]
[354560588,1740575437179,-1570.55,0.00040273,14]
[354560589,1740575437189,-551.74,0.00040273,14]
[354560591,1740575437200,-500.0,0.00040273,14]
[354560593,1740575437209,-1570.24,0.00040273,14]
[354560596,1740575437219,-500.0,0.00040273,14]
[354560597,1740575437228,-500.0,0.00040273,14]
[354560599,1740575437238,-500.0,0.00040273,14]
[354560601,1740575437247,-989.55,0.00040273,14]
[354560603,1740575437256,-500.0,0.00040273,14]
[354560604,1740575437265,-1767.47,0.00040273,14]
[354560605,1740575437274,-523.47,0.00040273,14]
[354560607,1740575437283,-719.22,0.00040273,14]
[354560609,1740575437293,-686.69,0.00040273,14]
[354560611,1740575437302,-1537.63,0.00040273,14]
[354560619,1740575437377,-500.0,0.00040273,14]
[354560621,1740575437387,-968.6,0.00040273,14]
[354560623,1740575437396,-1575.95,0.00040273,14]
[354560625,1740575437406,-543.4,0.00040273,14]
[354560627,1740575437415,-528.58,0.00040273,14]
[354560629,1740575437424,-2432.41,0.00040273,14]
[354560631,1740575437433,-541.83,0.00040273,14]
[354560633,1740575437443,-1795.79,0.00040273,14]
[354560635,1740575437452,-150.0,0.0004035,2]
[354560637,1740575437462,-10441.602469,0.00040359,4]
[354560639,1740575437471,-29901.42,0.00040369,120]
[354560641,1740575437480,-2088.32049381,0.00040372,4]
[354560643,1740575437489,-150.0,0.00040382,2]
[354560645,1740575437499,-150.0,0.00040432,2]
[354560648,1740575437508,-2359.98385835,0.00040447,15]
[354560650,1740575437520,-2088.32049381,0.00040537,4]
[354560652,1740575437530,-50119.6918514,0.00040537,4]
[354560654,1740575437539,-692.92,0.00040541,7]
[354560656,1740575437549,-1129.1065,0.00040543,2]
[354560658,1740575437558,-3708.47,0.00040546,14]
[354560660,1740575437567,-2401.25,0.00040546,14]
[354560662,1740575437576,-4835.15,0.00040546,14]
[354560664,1740575437586,-601.4,0.00040546,14]
[354560666,1740575437595,-1658.49,0.00040546,14]
[354560668,1740575437604,-500.0,0.00040546,14]
[354560670,1740575437614,-2217.0,0.00040546,14]
[354560672,1740575437624,-1666.86,0.00040546,14]
[354560674,1740575437633,-5163.43,0.00040546,14]
[354560676,1740575437642,-960.89,0.00040546,14]
[354560678,1740575437651,-1951.44,0.00040546,14]
[354560680,1740575437660,-2666.33,0.00040546,14]
[354560682,1740575437669,-1487.83,0.00040547,14]
[354560684,1740575437680,-423.08,0.00040547,14]
[354560686,1740575437688,-2229.8,0.00040547,14]
[354560688,1740575437698,-1619.1,0.00040547,14]
[354560690,1740575437707,-1479.23,0.00040547,14]
[354560692,1740575437716,-2097.27,0.00040547,14]
[354560694,1740575437725,-900.12,0.00040547,14]
[354560698,1740575437734,-1076.44,0.00040547,14]
[354560702,1740575437743,-551.17,0.00040547,14]
[354560705,1740575437752,-2896.43,0.00040547,14]
[354560709,1740575437762,-888.15,0.00040547,14]
[354560713,1740575437771,-500.0,0.00040547,14]
[354560716,1740575437781,-1019.59,0.00040547,14]
[354560718,1740575437790,-851.36,0.00040547,14]
[354560720,1740575437799,-558.39708826,0.00040547,14]
[354560722,1740575437808,-1272.09,0.00040547,14]
[354560724,1740575437817,-990.23,0.00040547,14]
[354560726,1740575437826,-922.72,0.00040547,14]
[354560728,1740575437835,-1390.38,0.00040547,14]
[354560730,1740575437845,-906.93,0.00040547,14]
[354560732,1740575437854,-813.8,0.00040547,14]
[354560734,1740575437864,-979.23,0.00040547,14]
[354560736,1740575437873,-848.06,0.00040547,14]
[354560738,1740575437882,-1166.79,0.00040547,14]
[354560740,1740575437891,-2574.68,0.00040547,14]
[354560742,1740575437901,-935.21,0.00040547,14]
[354560744,1740575437910,-1947.41,0.00040547,14]
[354560746,1740575437919,-892.23,0.00040547,14]
[354560748,1740575437929,-1187.85,0.00040547,14]
[354560750,1740575437939,-2471.55,0.00040547,14]
[354560752,1740575437953,-631.4,0.00040547,14]
[354560754,1740575437962,-1163.86,0.00040547,14]
[354560756,1740575437972,-658.09,0.00040547,14]
[354560758,1740575437981,-829.5,0.00040547,14]
[354560760,1740575437991,-500.0,0.00040547,14]
[354560762,1740575438000,-2087.01,0.00040547,14]
[354560764,1740575438009,-1242.91,0.00040547,14]
[354560766,1740575438019,-2448.7,0.00040547,14]
[354560768,1740575438031,-751.34,0.00040547,14]
[354560770,1740575438040,-500.0,0.00040547,14]
[354560772,1740575438049,-2720.53,0.00040547,14]
[354560774,1740575438059,-716.95,0.00040547,14]
[354560776,1740575438068,-897.6,0.00040547,14]
[354560778,1740575438076,-865.83,0.00040547,14]
[354560780,1740575438085,-555.27,0.00040547,14]
[354560782,1740575438095,-1380.31,0.00040547,14]
[354560784,1740575438104,-769.26,0.00040547,14]
[354560786,1740575438113,-3499.22945182,0.00040547,14]
[354560838,1740575438517,-2133.55054818,0.00040547,14]
[354560840,1740575438526,-500.0,0.00040547,14]
[354560842,1740575438536,-1003.99,0.00040547,14]
[354560844,1740575438546,-2223.55,0.00040547,14]
[354560846,1740575438556,-500.0,0.00040547,14]
[354560848,1740575438565,-500.0,0.00040547,14]
[354560850,1740575438575,-1633.45,0.00040547,14]
[354560852,1740575438584,-5865.29,0.00040547,14]
[354560854,1740575438594,-506.08,0.00040547,14]
[354560856,1740575438603,-500.0,0.00040547,14]
[354560858,1740575438613,-1724.37,0.00040547,14]
[354560860,1740575438623,-754.51,0.00040547,14]
[354560862,1740575438632,-1480.7,0.00040547,14]
[354560864,1740575438642,-818.41,0.00040547,14]
[354560866,1740575438654,-2469.31,0.00040547,14]
[354560867,1740575438663,-500.0,0.00040547,14]
[354560869,1740575438673,-793.87,0.00040547,14]
[354560871,1740575438681,-2851.43,0.00040547,14]
[354560873,1740575438691,-666.5,0.00040547,14]
[354560875,1740575438700,-661.76,0.00040547,14]
[354560877,1740575438710,-500.0,0.00040547,14]
[354560879,1740575438719,-674.56,0.00040547,14]
[354560881,1740575438727,-500.0,0.00040547,14]
[354560883,1740575438737,-819.63,0.00040547,14]
[354560885,1740575438746,-954.92,0.00040547,14]
[354560887,1740575438755,-2642.62,0.00040547,14]
[354560889,1740575438764,-500.0,0.00040547,14]
[354560891,1740575438774,-1530.02,0.00040547,14]
[354560893,1740575438783,-3744.89,0.00040547,14]
[354560895,1740575438792,-1429.61,0.00040547,14]
[354560897,1740575438801,-500.0,0.00040547,14]
[354560899,1740575438810,-825.28,0.00040547,14]
[354560901,1740575438819,-500.0,0.00040547,14]
[354560903,1740575438828,-517.09031078,0.00040547,14]
[354560905,1740575438837,-500.0,0.00040547,14]
[354560907,1740575438846,-863.05,0.00040547,14]
[354560909,1740575438855,-686.95,0.00040547,14]
[354560911,1740575438866,-1159.4,0.00040547,14]
[354560913,1740575438875,-500.0,0.00040547,14]
[354560915,1740575438884,-1570.55,0.00040547,14]
[354560917,1740575438893,-551.74,0.00040547,14]
[354560919,1740575438902,-500.0,0.00040547,14]
[354560921,1740575438911,-1570.24,0.00040547,14]
[354560923,1740575438920,-500.0,0.00040547,14]
[354560925,1740575438930,-500.0,0.00040547,14]
[354560927,1740575438939,-232.49377796,0.00040547,14]
[354560929,1740575438952,-989.55,0.00040547,14]
[354560931,1740575438961,-500.0,0.00040547,14]
[354560933,1740575438971,-1767.47,0.00040547,14]
[354560934,1740575438981,-523.47,0.00040547,14]
[354560936,1740575438990,-719.22,0.00040547,14]
[354560938,1740575438999,-686.69,0.00040547,14]
[354560940,1740575439008,-1537.63,0.00040547,14]
[354560942,1740575439018,-500.0,0.00040547,14]
[354560944,1740575439236,-968.6,0.00040547,14]
[354560947,1740575439246,-1575.95,0.00040547,14]
[354560948,1740575439255,-543.4,0.00040547,14]
[354560950,1740575439264,-528.58,0.00040547,14]
[354560952,1740575439273,-2432.41,0.00040547,14]
[354560954,1740575439282,-541.83,0.00040547,14]
[354560956,1740575439292,-1795.79,0.00040547,14]
[354560958,1740575439300,-156.49,0.0004056,2]
[354560960,1740575439310,-300.0,0.000406,14]
[354560962,1740575439320,-177.9,0.00040618,91]
[354560964,1740575439329,-2088.32049381,0.00040626,4]
[354560966,1740575439339,-2359.98385828,0.0004063,15]
[354560968,1740575439349,-2088.32049381,0.00040633,4]
[354560970,1740575439358,-150.0,0.00040636,2]
[354560972,1740575439368,-2371.01,0.00040642,14]
[354560974,1740575439377,-2500.96,0.00040642,14]
[354560976,1740575439387,-1814.89,0.00040642,14]
[354560978,1740575439396,-3797.99,0.00040642,14]
[354560980,1740575439405,-500.0,0.00040642,14]
[354560982,1740575439414,-3465.47,0.00040642,14]
[354560984,1740575439424,-1761.62,0.00040642,14]
[354560986,1740575439433,-3245.94,0.00040642,14]
[354560988,1740575439442,-500.0,0.00040642,14]
[354560990,1740575439451,-4094.25,0.00040642,14]
[354560992,1740575439460,-1938.93,0.00040642,14]
[354560994,1740575439469,-2147.12,0.00040642,14]
[354560996,1740575439478,-4231.49,0.00040642,14]
[354560998,1740575439487,-2356.62,0.00040642,14]
[354561000,1740575439496,-455.83269271,0.00040643,120]
[354561002,1740575439505,-29686.87,0.00040643,120]
[354561004,1740575439514,-150.0,0.00040661,2]
[354561006,1740575439523,-600.0,0.000407,14]
[354561007,1740575439532,-190.86672151,0.00040721,15]
[354561009,1740575439542,-2500.0,0.00040721,2]
[354561011,1740575439551,-358635.33604795,0.00040794,30]
[354561016,1740575439582,-240.8089,0.00035888,7]
[354561018,1740575439592,-6554.16768165,0.00040794,30]
[354561020,1740575439602,-900.0,0.000408,14]
[354561022,1740575439611,-660.63174117,0.000408,120]
[354561023,1740575439620,-660.56,0.000408,120]
[354561025,1740575439630,-660.56,0.000408,120]
[354561027,1740575439639,-660.56,0.000408,120]
[354561029,1740575439648,-660.56,0.000408,120]
[354561031,1740575439657,-660.56,0.000408,120]
[354561033,1740575439666,-660.56,0.000408,120]
[354561035,1740575439675,-660.56,0.000408,120]
[354561037,1740575439684,-660.56,0.000408,120]
[354561039,1740575439694,-660.56,0.000408,120]
[354561041,1740575439703,-2359.98385828,0.00040812,15]
[354561043,1740575439713,-941.3678189,0.00040817,2]
[354561045,1740575439724,-58.6321811,0.00040817,2]
[354561047,1740575439733,-150.0,0.0004082,2]
[354561049,1740575439742,-874.96260798,0.0004082,14]
[354561052,1740575439754,-2833.50739202,0.0004082,14]
[354561054,1740575439763,-2300.46603268,0.0004082,14]
[354561056,1740575439778,-100.78396732,0.0004082,14]
[354561058,1740575439787,-2504.43074731,0.0004082,14]
[354561060,1740575439799,-378.65149525,0.0004082,14]
[354561062,1740575439810,-1952.06775744,0.0004082,14]
[354561064,1740575439819,-601.4,0.0004082,14]
[354561066,1740575439829,-162.11219472,0.0004082,14]
[354561069,1740575439840,-586.2,0.0004082,14]
[354561071,1740575439851,-441.9564447,0.0004082,14]
[354561192,1740575441116,-161.84728313,0.000399,2]
[354561194,1740575441126,-500.0,0.00040272,14]
[354561196,1740575441135,-500.0,0.00040546,14]
[354561198,1740575441144,-1296.58,0.00040642,14]
[354561200,1740575441153,-468.22136058,0.0004082,14]
[354561202,1740575441162,-500.0,0.0004082,14]
[354561204,1740575441171,-2217.0,0.0004082,14]
[354561206,1740575441180,-527.76504749,0.0004082,14]
[354561208,1740575441192,-1139.09495251,0.0004082,14]
[354561210,1740575441201,-5163.43,0.0004082,14]
[354561212,1740575441211,-960.89,0.0004082,14]
[354561214,1740575441220,-1951.44,0.0004082,14]
[354561216,1740575441229,-2666.33,0.0004082,14]
[354561218,1740575441239,-500.0,0.0004082,14]
[354561220,1740575441248,-1487.83,0.00040821,14]
[354561222,1740575441257,-423.08,0.00040821,14]
[354561224,1740575441266,-2229.8,0.00040821,14]
[354561225,1740575441275,-1619.1,0.00040821,14]
[354561226,1740575441284,-1479.23,0.00040821,14]
[354561227,1740575441294,-2097.27,0.00040821,14]
[354561228,1740575441303,-900.12,0.00040821,14]
[354561229,1740575441312,-1076.44,0.00040821,14]
[354561230,1740575441322,-551.17,0.00040821,14]
[354561231,1740575441331,-2896.43,0.00040821,14]
[354561232,1740575441341,-888.15,0.00040821,14]
[354561233,1740575441350,-500.0,0.00040821,14]
[354561234,1740575441360,-1019.59,0.00040821,14]
[354561235,1740575441370,-851.36,0.00040821,14]
[354561236,1740575441379,-1272.09,0.00040821,14]
[354561237,1740575441388,-990.23,0.00040821,14]
[354561238,1740575441398,-922.72,0.00040821,14]
[354561239,1740575441408,-1390.38,0.00040821,14]
[354561240,1740575441418,-906.93,0.00040821,14]
[354561241,1740575441429,-813.8,0.00040821,14]
[354561242,1740575441438,-848.06,0.00040821,14]
[354561243,1740575441448,-979.23,0.00040821,14]
[354561244,1740575441457,-1166.79,0.00040821,14]
[354561245,1740575441466,-935.21,0.00040821,14]
[354561246,1740575441476,-222.98212276,0.00040821,14]
[354561247,1740575441488,-2351.69787724,0.00040821,14]
[354561248,1740575441497,-1947.41,0.00040821,14]
[354561249,1740575441506,-892.23,0.00040821,14]
[354561250,1740575441516,-1187.85,0.00040821,14]
[354561251,1740575441526,-2471.55,0.00040821,14]
[354561252,1740575441536,-631.4,0.00040821,14]
[354561253,1740575441546,-1163.86,0.00040821,14]
[354561254,1740575441555,-658.09,0.00040821,14]
[354561255,1740575441564,-829.5,0.00040821,14]
[354561256,1740575441574,-500.0,0.00040821,14]
[354561257,1740575441583,-2087.01,0.00040821,14]